[Event "Titled Tuesday Blitz August 22 Late 2023"]
[White "Bazilius, Augustinas"]
[Black "Ribeiro, Matheus Mendes Domingues"]
[WhiteFideId "12832251"]
[BlackFideId "324226923"]
[WhiteElo "2468"]
[BlackElo "2605"]
[Result "0-1"]
[Round "9"]
[TimeControl "180+1"]
[Date "2023.08.22"]
[WhiteClock "0:00:02"]
[BlackClock "0:00:05"]
[Board "57"]

1. d4 {[%clk 0:03:00]}  d5 {[%clk 0:02:56]} 2. c4 {[%clk 0:02:58]}  e6 {[%clk 0:02:29]} 3. Nf3 {[%clk 0:02:57]}  Nf6 {[%clk 0:02:26]} 4. g3 {[%clk 0:02:58]}  Be7 {[%clk 0:02:26]} 5. Bg2 {[%clk 0:02:58]}  O-O {[%clk 0:02:25]} 6. O-O {[%clk 0:02:59]}  dxc4 {[%clk 0:02:23]} 7. Ne5 {[%clk 0:03:00]}  Nc6 {[%clk 0:02:23]} 8. Bxc6 {[%clk 0:03:00]}  bxc6 {[%clk 0:02:23]} 9. Nxc6 {[%clk 0:03:01]}  Qe8 {[%clk 0:02:24]} 10. Nxe7+ {[%clk 0:03:01]}  Qxe7 {[%clk 0:02:25]} 11. Qa4 {[%clk 0:03:01]}  e5 {[%clk 0:02:25]} 12. dxe5 {[%clk 0:03:02]}  Qxe5 {[%clk 0:02:26]} 13. Qxc4 {[%clk 0:03:03]}  Be6 {[%clk 0:02:26]} 14. Qc2 {[%clk 0:02:57]}  Bf5 {[%clk 0:02:03]} 15. Qc4 {[%clk 0:02:50]}  Be6 {[%clk 0:02:02]} 16. Qc2 {[%clk 0:02:49]}  Qh5 {[%clk 0:02:02]} 17. f3 {[%clk 0:02:41]}  Nd5 {[%clk 0:01:56]} 18. Nc3 {[%clk 0:02:37]}  Rfd8 {[%clk 0:01:53]} 19. Nxd5 {[%clk 0:02:33]}  Bxd5 {[%clk 0:01:45]} 20. e4 {[%clk 0:02:16]}  Be6 {[%clk 0:01:39]} 21. Bf4 {[%clk 0:02:06]}  Rd7 {[%clk 0:01:34]} 22. b3 {[%clk 0:01:34]}  h6 {[%clk 0:01:09]} 23. Rad1 {[%clk 0:00:50]}  Rad8 {[%clk 0:01:04]} 24. Qe2 {[%clk 0:00:15]}  a5 {[%clk 0:00:31]} 25. Rxd7 {[%clk 0:00:13]}  Rxd7 {[%clk 0:00:32]} 26. Rd1 {[%clk 0:00:13]}  Rxd1+ {[%clk 0:00:22]} 27. Qxd1 {[%clk 0:00:13]}  c6 {[%clk 0:00:17]} 28. Be3 {[%clk 0:00:07]}  Qb5 {[%clk 0:00:16]} 29. Qd2 {[%clk 0:00:06]}  a4 {[%clk 0:00:16]} 30. bxa4 {[%clk 0:00:07]}  Qxa4 {[%clk 0:00:17]} 31. Bd4 {[%clk 0:00:02]}  Bxa2 {[%clk 0:00:16]} 32. Qc3 {[%clk 0:00:02]}  f6 {[%clk 0:00:08]} 33. Kg2 {[%clk 0:00:03]}  Bc4 {[%clk 0:00:06]} 34. Bf2 {[%clk 0:00:03]}  Qa2 {[%clk 0:00:05]} 35. Qd4 {[%clk 0:00:03]}  Qe2 {[%clk 0:00:05]} 36. Qd8+ {[%clk 0:00:02]}  Kh7 {[%clk 0:00:05]} 37. g4 {[%clk 0:00:01]}  Bb3 {[%clk 0:00:04]} 38. Kg3 {[%clk 0:00:01]}  Bd1 {[%clk 0:00:04]} 39. Qd6 {[%clk 0:00:01]}  Qxf3+ {[%clk 0:00:05]} 40. Kh4 {[%clk 0:00:02]}  Qxg4# {[%clk 0:00:05]} 0-1


[Site "https://www.chess.com"]

[Event "Titled Tuesday Blitz August 22 Late 2023"]
[White "Erzhanov, Arman"]
[Black "Zeck_CH"]
[WhiteFideId "4138821"]
[WhiteElo "2602"]
[BlackElo "2495"]
[Result "1-0"]
[Round "9"]
[TimeControl "180+1"]
[Date "2023.08.22"]
[WhiteClock "0:00:53"]
[BlackClock "0:00:45"]
[Board "59"]

1. e4 {[%clk 0:03:00]}  c5 {[%clk 0:02:58]} 2. Nf3 {[%clk 0:03:00]}  e6 {[%clk 0:02:58]} 3. b3 {[%clk 0:03:00]}  b6 {[%clk 0:02:57]} 4. Bb2 {[%clk 0:03:00]}  Bb7 {[%clk 0:02:58]} 5. d3 {[%clk 0:02:59]}  d6 {[%clk 0:02:58]} 6. g3 {[%clk 0:02:59]}  Nd7 {[%clk 0:02:59]} 7. Bg2 {[%clk 0:03:00]}  Ngf6 {[%clk 0:02:59]} 8. O-O {[%clk 0:02:59]}  Be7 {[%clk 0:03:00]} 9. Nbd2 {[%clk 0:03:00]}  O-O {[%clk 0:03:00]} 10. Ng5 {[%clk 0:03:00]}  Qc7 {[%clk 0:02:54]} 11. f4 {[%clk 0:02:58]}  b5 {[%clk 0:02:55]} 12. a4 {[%clk 0:02:58]}  a6 {[%clk 0:02:55]} 13. Qe2 {[%clk 0:02:54]}  Rfc8 {[%clk 0:02:49]} 14. h3 {[%clk 0:02:50]}  h6 {[%clk 0:02:48]} 15. Ngf3 {[%clk 0:02:50]}  Nf8 {[%clk 0:02:47]} 16. g4 {[%clk 0:02:49]}  N6d7 {[%clk 0:02:47]} 17. f5 {[%clk 0:02:47]}  Bf6 {[%clk 0:02:46]} 18. Bxf6 {[%clk 0:02:45]}  Nxf6 {[%clk 0:02:47]} 19. g5 {[%clk 0:02:41]}  hxg5 {[%clk 0:02:46]} 20. Nxg5 {[%clk 0:02:42]}  exf5 {[%clk 0:02:46]} 21. Rxf5 {[%clk 0:02:42]}  Re8 {[%clk 0:02:28]} 22. Qf2 {[%clk 0:02:33]}  Qe7 {[%clk 0:02:21]} 23. axb5 {[%clk 0:02:15]}  axb5 {[%clk 0:02:17]} 24. Re1 {[%clk 0:02:14]}  Ra2 {[%clk 0:02:15]} 25. Nf1 {[%clk 0:02:14]}  Bc8 {[%clk 0:02:12]} 26. Rf3 {[%clk 0:02:12]}  Ng6 {[%clk 0:02:11]} 27. Ne3 {[%clk 0:01:52]}  Ne5 {[%clk 0:02:05]} 28. Rf5 {[%clk 0:01:39]}  g6 {[%clk 0:01:35]} 29. Rxf6 {[%clk 0:01:37]}  Kg7 {[%clk 0:01:30]} 30. Rf1 {[%clk 0:01:30]}  Rf8 {[%clk 0:01:27]} 31. Nd5 {[%clk 0:01:30]}  Qd8 {[%clk 0:01:26]} 32. Qh4 {[%clk 0:01:17]}  Rh8 {[%clk 0:01:22]} 33. Rxf7+ {[%clk 0:01:18]}  Nxf7 {[%clk 0:01:17]} 34. Rxf7+ {[%clk 0:01:17]}  Kg8 {[%clk 0:01:13]} 35. Qf4 {[%clk 0:00:56]}  Rh5 {[%clk 0:00:45]} 36. Ne7+ {[%clk 0:00:53]} 1-0


[Site "https://www.chess.com"]

[Event "Titled Tuesday Blitz August 22 Late 2023"]
[White "Jorajuria Mendoza, Algol"]
[Black "Santos Flores, Alberto"]
[WhiteFideId "5128897"]
[BlackFideId "3601234"]
[WhiteElo "2443"]
[BlackElo "2571"]
[Result "0-1"]
[Round "9"]
[TimeControl "180+1"]
[Date "2023.08.22"]
[WhiteClock "0:00:00"]
[BlackClock "0:00:27"]
[Board "60"]

1. e4 {[%clk 0:03:00]}  e6 {[%clk 0:02:56]} 2. d4 {[%clk 0:03:00]}  d5 {[%clk 0:02:54]} 3. Nd2 {[%clk 0:03:00]}  c5 {[%clk 0:02:53]} 4. Ngf3 {[%clk 0:02:54]}  cxd4 {[%clk 0:02:53]} 5. Nxd4 {[%clk 0:02:51]}  Nf6 {[%clk 0:02:53]} 6. exd5 {[%clk 0:02:49]}  Nxd5 {[%clk 0:02:54]} 7. c4 {[%clk 0:02:44]}  Nb4 {[%clk 0:02:51]} 8. N2f3 {[%clk 0:02:20]}  Be7 {[%clk 0:02:47]} 9. a3 {[%clk 0:02:18]}  N4c6 {[%clk 0:02:47]} 10. Be3 {[%clk 0:02:16]}  O-O {[%clk 0:02:46]} 11. Bd3 {[%clk 0:02:16]}  Bf6 {[%clk 0:02:43]} 12. O-O {[%clk 0:02:10]}  Nxd4 {[%clk 0:02:43]} 13. Nxd4 {[%clk 0:02:09]}  Nc6 {[%clk 0:02:43]} 14. Nxc6 {[%clk 0:02:08]}  bxc6 {[%clk 0:02:44]} 15. Rb1 {[%clk 0:02:03]}  a5 {[%clk 0:02:43]} 16. b4 {[%clk 0:01:59]}  axb4 {[%clk 0:02:43]} 17. axb4 {[%clk 0:02:00]}  Ra3 {[%clk 0:02:39]} 18. Be4 {[%clk 0:01:59]}  Qc7 {[%clk 0:02:34]} 19. b5 {[%clk 0:01:49]}  cxb5 {[%clk 0:02:34]} 20. cxb5 {[%clk 0:01:50]}  Bb7 {[%clk 0:02:34]} 21. b6 {[%clk 0:01:47]}  Qb8 {[%clk 0:02:30]} 22. Bxb7 {[%clk 0:01:46]}  Qxb7 {[%clk 0:02:30]} 23. Bc5 {[%clk 0:01:43]}  Rd8 {[%clk 0:02:30]} 24. Bxa3 {[%clk 0:01:38]}  Rxd1 {[%clk 0:02:28]} 25. Rfxd1 {[%clk 0:01:39]}  h5 {[%clk 0:02:26]} 26. Bd6 {[%clk 0:01:30]}  h4 {[%clk 0:02:22]} 27. h3 {[%clk 0:01:18]}  g5 {[%clk 0:02:21]} 28. Bh2 {[%clk 0:01:08]}  Kg7 {[%clk 0:02:20]} 29. Rd7 {[%clk 0:01:04]}  Qe4 {[%clk 0:02:07]} 30. Rbd1 {[%clk 0:00:57]}  Be5 {[%clk 0:02:04]} 31. Bxe5+ {[%clk 0:00:54]}  Qxe5 {[%clk 0:02:01]} 32. b7 {[%clk 0:00:55]}  Qb5 {[%clk 0:01:59]} 33. Rc7 {[%clk 0:00:48]}  Qb4 {[%clk 0:01:53]} 34. Rdc1 {[%clk 0:00:20]}  Kg6 {[%clk 0:01:49]} 35. Kh2 {[%clk 0:00:19]}  Qf4+ {[%clk 0:01:48]} 36. Kg1 {[%clk 0:00:19]}  Qb4 {[%clk 0:01:49]} 37. R1c5 {[%clk 0:00:18]}  Qe1+ {[%clk 0:01:26]} 38. Kh2 {[%clk 0:00:19]}  Qxf2 {[%clk 0:01:27]} 39. Rc1 {[%clk 0:00:18]}  Qf4+ {[%clk 0:01:24]} 40. Kg1 {[%clk 0:00:18]}  Qb4 {[%clk 0:01:24]} 41. Kh1 {[%clk 0:00:15]}  f5 {[%clk 0:01:21]} 42. R1c6 {[%clk 0:00:12]}  Kf6 {[%clk 0:01:19]} 43. Rd7 {[%clk 0:00:09]}  g4 {[%clk 0:01:12]} 44. hxg4 {[%clk 0:00:08]}  fxg4 {[%clk 0:01:12]} 45. Rc8 {[%clk 0:00:05]}  g3 {[%clk 0:00:30]} 46. Rc1 {[%clk 0:00:05]}  h3 {[%clk 0:00:27]} 47. gxh3 {[%clk 0:00:02]}  Qb2 {[%clk 0:00:27]} 48. Rf1+ {[%clk 0:00:00]}  Kg6 {[%clk 0:00:27]} 0-1


[Site "https://www.chess.com"]

[Event "Titled Tuesday Blitz August 22 Late 2023"]
[White "Vovk, Orest"]
[Black "Sala, Giulia"]
[WhiteFideId "14113490"]
[BlackFideId "2840451"]
[WhiteElo "2545"]
[BlackElo "2347"]
[Result "0-1"]
[Round "9"]
[TimeControl "180+1"]
[Date "2023.08.22"]
[WhiteClock "0:00:00"]
[BlackClock "0:00:14"]
[Board "61"]

1. g4 {[%clk 0:02:51]}  d5 {[%clk 0:02:58]} 2. h3 {[%clk 0:02:50]}  e5 {[%clk 0:02:54]} 3. Bg2 {[%clk 0:02:50]}  c6 {[%clk 0:02:46]} 4. d4 {[%clk 0:02:50]}  Bd6 {[%clk 0:02:42]} 5. c4 {[%clk 0:02:50]}  dxc4 {[%clk 0:02:40]} 6. dxe5 {[%clk 0:02:48]}  Bxe5 {[%clk 0:02:38]} 7. Qxd8+ {[%clk 0:02:48]}  Kxd8 {[%clk 0:02:39]} 8. Nf3 {[%clk 0:02:48]}  Bf6 {[%clk 0:02:36]} 9. O-O {[%clk 0:02:45]}  Be6 {[%clk 0:02:33]} 10. Nd4 {[%clk 0:02:33]}  Bxd4 {[%clk 0:02:29]} 11. Rd1 {[%clk 0:02:33]}  Nd7 {[%clk 0:02:21]} 12. Rxd4 {[%clk 0:02:31]}  h5 {[%clk 0:02:17]} 13. Na3 {[%clk 0:02:18]}  hxg4 {[%clk 0:02:10]} 14. hxg4 {[%clk 0:02:17]}  Ne7 {[%clk 0:01:58]} 15. Nxc4 {[%clk 0:02:03]}  c5 {[%clk 0:01:56]} 16. Re4 {[%clk 0:01:50]}  Nf6 {[%clk 0:01:51]} 17. Rxe6 {[%clk 0:01:37]}  fxe6 {[%clk 0:01:51]} 18. Bxb7 {[%clk 0:01:37]}  Rb8 {[%clk 0:01:50]} 19. Bf3 {[%clk 0:01:36]}  Ned5 {[%clk 0:01:45]} 20. e4 {[%clk 0:01:25]}  Nb4 {[%clk 0:01:40]} 21. Bf4 {[%clk 0:01:23]}  Rc8 {[%clk 0:01:27]} 22. Rd1+ {[%clk 0:01:18]}  Ke7 {[%clk 0:01:25]} 23. Bd6+ {[%clk 0:01:05]}  Kf7 {[%clk 0:01:24]} 24. Ne5+ {[%clk 0:01:01]}  Ke8 {[%clk 0:01:20]} 25. g5 {[%clk 0:00:38]}  Ng8 {[%clk 0:00:57]} 26. Bg4 {[%clk 0:00:32]}  Rd8 {[%clk 0:00:45]} 27. Bxe6 {[%clk 0:00:30]}  Rxd6 {[%clk 0:00:40]} 28. Rxd6 {[%clk 0:00:28]}  Ke7 {[%clk 0:00:38]} 29. Nc4 {[%clk 0:00:21]}  Nh6 {[%clk 0:00:33]} 30. gxh6 {[%clk 0:00:18]}  Rxh6 {[%clk 0:00:34]} 31. a3 {[%clk 0:00:15]}  Nc2 {[%clk 0:00:28]} 32. Rd2 {[%clk 0:00:12]}  Nd4 {[%clk 0:00:26]} 33. Rxd4 {[%clk 0:00:10]}  cxd4 {[%clk 0:00:25]} 34. Bd5 {[%clk 0:00:10]}  d3 {[%clk 0:00:17]} 35. Kg2 {[%clk 0:00:09]}  Rf6 {[%clk 0:00:16]} 36. f3 {[%clk 0:00:08]}  g5 {[%clk 0:00:16]} 37. Kg3 {[%clk 0:00:08]}  Rf4 {[%clk 0:00:15]} 38. b4 {[%clk 0:00:07]}  Rh4 {[%clk 0:00:14]} 39. Kf2 {[%clk 0:00:05]}  Rh2+ {[%clk 0:00:14]} 40. Ke3 {[%clk 0:00:05]}  Rh3 {[%clk 0:00:13]} 41. Kxd3 {[%clk 0:00:04]}  Rxf3+ {[%clk 0:00:13]} 42. Kd4 {[%clk 0:00:04]}  g4 {[%clk 0:00:12]} 43. Ne5 {[%clk 0:00:04]}  Rg3 {[%clk 0:00:12]} 44. b5 {[%clk 0:00:04]}  Rg1 {[%clk 0:00:12]} 45. Ng6+ {[%clk 0:00:04]}  Kf6 {[%clk 0:00:12]} 46. Nf4 {[%clk 0:00:04]}  g3 {[%clk 0:00:12]} 47. Ke3 {[%clk 0:00:03]}  Kg5 {[%clk 0:00:12]} 48. Ne2 {[%clk 0:00:02]}  Re1 {[%clk 0:00:11]} 49. Kf3 {[%clk 0:00:02]}  g2 {[%clk 0:00:11]} 50. Kxg2 {[%clk 0:00:02]}  Rxe2+ {[%clk 0:00:11]} 51. Kf3 {[%clk 0:00:03]}  Rc2 {[%clk 0:00:10]} 52. Bc6 {[%clk 0:00:02]}  Rc3+ {[%clk 0:00:11]} 53. Ke2 {[%clk 0:00:03]}  Rxa3 {[%clk 0:00:11]} 54. Kd2 {[%clk 0:00:03]}  Kf4 {[%clk 0:00:11]} 55. Kc2 {[%clk 0:00:03]}  Ke5 {[%clk 0:00:12]} 56. Kb2 {[%clk 0:00:03]}  Rg3 {[%clk 0:00:12]} 57. Kc2 {[%clk 0:00:03]}  Kd4 {[%clk 0:00:13]} 58. Kd2 {[%clk 0:00:03]}  Rg2+ {[%clk 0:00:13]} 59. Ke1 {[%clk 0:00:03]}  Rh2 {[%clk 0:00:14]} 60. Kf1 {[%clk 0:00:03]}  Rc2 {[%clk 0:00:13]} 61. Kg1 {[%clk 0:00:03]}  a5 {[%clk 0:00:14]} 62. bxa6 {[%clk 0:00:00]}  Rxc6 {[%clk 0:00:14]} 0-1


[Site "https://www.chess.com"]

[Event "Titled Tuesday Blitz August 22 Late 2023"]
[White "Klukin, Kirill"]
[Black "Andrews, Todd"]
[WhiteFideId "24199273"]
[BlackFideId "2012456"]
[WhiteElo "2800"]
[BlackElo "2399"]
[Result "1-0"]
[Round "9"]
[TimeControl "180+1"]
[Date "2023.08.22"]
[WhiteClock "0:01:07"]
[BlackClock "0:00:00"]
[Board "62"]

1. f4 {[%clk 0:03:00]}  d5 {[%clk 0:02:59]} 2. Nf3 {[%clk 0:03:01]}  g6 {[%clk 0:03:00]} 3. g3 {[%clk 0:03:01]}  Bg7 {[%clk 0:03:00]} 4. Bg2 {[%clk 0:03:02]}  Nh6 {[%clk 0:03:00]} 5. O-O {[%clk 0:03:02]}  Nf5 {[%clk 0:03:01]} 6. d3 {[%clk 0:02:58]}  c6 {[%clk 0:03:01]} 7. Nc3 {[%clk 0:02:58]}  h5 {[%clk 0:03:01]} 8. e4 {[%clk 0:02:58]}  Qb6+ {[%clk 0:02:53]} 9. Kh1 {[%clk 0:02:53]}  dxe4 {[%clk 0:02:41]} 10. dxe4 {[%clk 0:02:52]}  Ne3 {[%clk 0:02:38]} 11. Bxe3 {[%clk 0:02:50]}  Qxe3 {[%clk 0:02:39]} 12. e5 {[%clk 0:02:39]}  Bg4 {[%clk 0:02:32]} 13. Qd4 {[%clk 0:02:30]}  Qxd4 {[%clk 0:02:28]} 14. Nxd4 {[%clk 0:02:31]}  h4 {[%clk 0:02:28]} 15. Kg1 {[%clk 0:02:29]}  hxg3 {[%clk 0:02:27]} 16. hxg3 {[%clk 0:02:30]}  Nd7 {[%clk 0:02:19]} 17. Bf3 {[%clk 0:02:16]}  Bxf3 {[%clk 0:02:16]} 18. Nxf3 {[%clk 0:02:17]}  O-O-O {[%clk 0:02:02]} 19. Ng5 {[%clk 0:02:11]}  Rdf8 {[%clk 0:01:45]} 20. Rad1 {[%clk 0:02:08]}  Nc5 {[%clk 0:01:29]} 21. b4 {[%clk 0:01:59]}  f6 {[%clk 0:01:23]} 22. Nf3 {[%clk 0:01:40]}  Ne6 {[%clk 0:01:16]} 23. exf6 {[%clk 0:01:37]}  exf6 {[%clk 0:01:08]} 24. Ne4 {[%clk 0:01:35]}  f5 {[%clk 0:01:04]} 25. Nd6+ {[%clk 0:01:30]}  Kc7 {[%clk 0:01:05]} 26. Rfe1 {[%clk 0:01:30]}  Rf6 {[%clk 0:00:52]} 27. Ng5 {[%clk 0:01:20]}  Nxg5 {[%clk 0:00:33]} 28. Re7+ {[%clk 0:01:20]}  Kb8 {[%clk 0:00:29]} 29. fxg5 {[%clk 0:01:08]}  Rxd6 {[%clk 0:00:12]} 30. Rxd6 {[%clk 0:01:09]}  Bc3 {[%clk 0:00:08]} 31. Rdd7 {[%clk 0:01:09]}  Ka8 {[%clk 0:00:06]} 32. a3 {[%clk 0:01:07]}  a6 {[%clk 0:00:03]} 33. Kg2 {[%clk 0:01:07]}  Rb8 {[%clk 0:00:02]} 34. Re6 {[%clk 0:01:07]}  Bb2 {[%clk 0:00:02]} 35. a4 {[%clk 0:01:07]}  Bc3 {[%clk 0:00:02]} 36. b5 {[%clk 0:01:07]}  cxb5 {[%clk 0:00:01]} 37. axb5 {[%clk 0:01:07]}  axb5 {[%clk 0:00:00]} 38. Rxg6 {[%clk 0:01:07]} 1-0


[Site "https://www.chess.com"]

[Event "Titled Tuesday Blitz August 22 Late 2023"]
[White "Buchenau, Frank"]
[Black "Schnaider, Ilan"]
[WhiteFideId "4604350"]
[BlackFideId "169013"]
[WhiteElo "2461"]
[BlackElo "2681"]
[Result "0-1"]
[Round "9"]
[TimeControl "180+1"]
[Date "2023.08.22"]
[WhiteClock "0:00:00"]
[BlackClock "0:00:04"]
[Board "63"]

1. e4 {[%clk 0:03:00]}  e5 {[%clk 0:02:58]} 2. Bc4 {[%clk 0:03:00]}  Nf6 {[%clk 0:02:57]} 3. d3 {[%clk 0:03:00]}  Be7 {[%clk 0:02:54]} 4. Nf3 {[%clk 0:03:01]}  Nc6 {[%clk 0:02:54]} 5. O-O {[%clk 0:03:01]}  O-O {[%clk 0:02:53]} 6. Re1 {[%clk 0:03:01]}  h6 {[%clk 0:02:53]} 7. a4 {[%clk 0:03:01]}  a5 {[%clk 0:02:49]} 8. c3 {[%clk 0:02:59]}  d6 {[%clk 0:02:47]} 9. Na3 {[%clk 0:02:58]}  Re8 {[%clk 0:02:47]} 10. Bb3 {[%clk 0:02:56]}  Be6 {[%clk 0:02:46]} 11. Nc4 {[%clk 0:02:56]}  Nd7 {[%clk 0:02:44]} 12. Ne3 {[%clk 0:02:53]}  Bxb3 {[%clk 0:02:40]} 13. Qxb3 {[%clk 0:02:52]}  Nc5 {[%clk 0:02:40]} 14. Qc2 {[%clk 0:02:53]}  Ne6 {[%clk 0:02:40]} 15. Nf5 {[%clk 0:02:43]}  d5 {[%clk 0:02:35]} 16. Qb3 {[%clk 0:02:36]}  Nc5 {[%clk 0:02:31]} 17. Qxd5 {[%clk 0:02:34]}  Nxd3 {[%clk 0:02:13]} 18. Rd1 {[%clk 0:02:26]}  Nc5 {[%clk 0:01:50]} 19. Be3 {[%clk 0:02:25]}  Ne6 {[%clk 0:01:46]} 20. Qb3 {[%clk 0:02:07]}  Qc8 {[%clk 0:01:41]} 21. Rd5 {[%clk 0:02:07]}  Bf6 {[%clk 0:01:36]} 22. Rad1 {[%clk 0:02:06]}  Ne7 {[%clk 0:01:29]} 23. Nxe7+ {[%clk 0:02:01]}  Rxe7 {[%clk 0:01:30]} 24. h4 {[%clk 0:01:44]}  c6 {[%clk 0:01:16]} 25. Rd6 {[%clk 0:01:44]}  Nf4 {[%clk 0:01:14]} 26. Rd8+ {[%clk 0:01:35]}  Qxd8 {[%clk 0:01:14]} 27. Rxd8+ {[%clk 0:01:36]}  Rxd8 {[%clk 0:01:15]} 28. Bb6 {[%clk 0:01:19]}  Rd3 {[%clk 0:01:11]} 29. Bxa5 {[%clk 0:01:13]}  g5 {[%clk 0:01:11]} 30. hxg5 {[%clk 0:01:11]}  hxg5 {[%clk 0:01:11]} 31. Nh2 {[%clk 0:01:06]}  Red7 {[%clk 0:01:09]} 32. Ng4 {[%clk 0:01:05]}  Kg7 {[%clk 0:01:04]} 33. g3 {[%clk 0:00:56]}  Ne6 {[%clk 0:00:56]} 34. Bb4 {[%clk 0:00:48]}  Rd1+ {[%clk 0:00:44]} 35. Kg2 {[%clk 0:00:47]}  Re1 {[%clk 0:00:44]} 36. Ne3 {[%clk 0:00:40]}  c5 {[%clk 0:00:25]} 37. Ba3 {[%clk 0:00:31]}  Rd2 {[%clk 0:00:25]} 38. Qc4 {[%clk 0:00:21]}  Rxe3 {[%clk 0:00:24]} 39. Bxc5 {[%clk 0:00:11]}  Nxc5 {[%clk 0:00:23]} 40. Qxc5 {[%clk 0:00:11]}  Ree2 {[%clk 0:00:24]} 41. b4 {[%clk 0:00:10]}  g4 {[%clk 0:00:19]} 42. a5 {[%clk 0:00:09]}  Rxf2+ {[%clk 0:00:13]} 43. Qxf2 {[%clk 0:00:08]}  Rxf2+ {[%clk 0:00:14]} 44. Kxf2 {[%clk 0:00:08]}  Bd8 {[%clk 0:00:15]} 45. Ke2 {[%clk 0:00:07]}  Kf6 {[%clk 0:00:15]} 46. Kd3 {[%clk 0:00:07]}  Ke6 {[%clk 0:00:16]} 47. c4 {[%clk 0:00:05]}  f5 {[%clk 0:00:16]} 48. exf5+ {[%clk 0:00:04]}  Kxf5 {[%clk 0:00:17]} 49. c5 {[%clk 0:00:04]}  e4+ {[%clk 0:00:16]} 50. Kd4 {[%clk 0:00:03]}  Bf6+ {[%clk 0:00:15]} 51. Kc4 {[%clk 0:00:03]}  Be5 {[%clk 0:00:07]} 52. b5 {[%clk 0:00:03]}  Bxg3 {[%clk 0:00:07]} 53. a6 {[%clk 0:00:02]}  bxa6 {[%clk 0:00:07]} 54. bxa6 {[%clk 0:00:02]}  e3 {[%clk 0:00:07]} 55. Kd3 {[%clk 0:00:01]}  Bb8 {[%clk 0:00:05]} 56. c6 {[%clk 0:00:00]}  g3 {[%clk 0:00:04]} 0-1


[Site "https://www.chess.com"]

[Event "Titled Tuesday Blitz August 22 Late 2023"]
[White "Almiron, Antonio"]
[Black "Toropov, Pavel"]
[WhiteFideId "3701166"]
[BlackFideId "24129178"]
[WhiteElo "2626"]
[BlackElo "2475"]
[Result "1-0"]
[Round "9"]
[TimeControl "180+1"]
[Date "2023.08.22"]
[WhiteClock "0:00:49"]
[BlackClock "0:00:03"]
[Board "64"]

1. e4 {[%clk 0:02:59]}  e6 {[%clk 0:02:56]} 2. d4 {[%clk 0:02:59]}  d5 {[%clk 0:02:57]} 3. Nc3 {[%clk 0:02:59]}  dxe4 {[%clk 0:02:57]} 4. Nxe4 {[%clk 0:02:59]}  Nd7 {[%clk 0:02:58]} 5. Nf3 {[%clk 0:02:58]}  Ngf6 {[%clk 0:02:58]} 6. Nxf6+ {[%clk 0:02:55]}  Nxf6 {[%clk 0:02:59]} 7. Ne5 {[%clk 0:02:56]}  Bd6 {[%clk 0:02:47]} 8. Bg5 {[%clk 0:02:49]}  O-O {[%clk 0:02:39]} 9. Qf3 {[%clk 0:02:30]}  h6 {[%clk 0:01:23]} 10. Bh4 {[%clk 0:02:13]}  c5 {[%clk 0:01:09]} 11. O-O-O {[%clk 0:01:53]}  Be7 {[%clk 0:00:11]} 12. dxc5 {[%clk 0:01:29]}  Qa5 {[%clk 0:00:11]} 13. Ng4 {[%clk 0:01:20]}  Qxc5 {[%clk 0:00:10]} 14. Nxf6+ {[%clk 0:01:15]}  Bxf6 {[%clk 0:00:08]} 15. Bxf6 {[%clk 0:01:16]}  gxf6 {[%clk 0:00:09]} 16. Qxf6 {[%clk 0:01:17]}  Qg5+ {[%clk 0:00:09]} 17. Qxg5+ {[%clk 0:01:17]}  hxg5 {[%clk 0:00:10]} 18. h4 {[%clk 0:01:17]}  gxh4 {[%clk 0:00:07]} 19. Rxh4 {[%clk 0:01:17]}  Kg7 {[%clk 0:00:08]} 20. Rd3 {[%clk 0:01:17]}  Kf6 {[%clk 0:00:07]} 21. Be2 {[%clk 0:01:14]}  e5 {[%clk 0:00:07]} 22. Rf3+ {[%clk 0:01:13]}  Ke7 {[%clk 0:00:07]} 23. Rb4 {[%clk 0:01:07]}  b6 {[%clk 0:00:07]} 24. Re3 {[%clk 0:01:07]}  f6 {[%clk 0:00:03]} 25. f4 {[%clk 0:01:07]}  Ke6 {[%clk 0:00:04]} 26. Bg4+ {[%clk 0:01:00]}  Kd6 {[%clk 0:00:03]} 27. Bf3 {[%clk 0:00:56]}  Rb8 {[%clk 0:00:03]} 28. fxe5+ {[%clk 0:00:50]}  fxe5 {[%clk 0:00:04]} 29. Rbe4 {[%clk 0:00:50]}  Re8 {[%clk 0:00:03]} 30. Rd3+ {[%clk 0:00:50]}  Kc7 {[%clk 0:00:03]} 31. Rc4# {[%clk 0:00:49]} 1-0


[Site "https://www.chess.com"]

[Event "Titled Tuesday Blitz August 22 Late 2023"]
[White "Karttunen, Mika"]
[Black "Hajiyev, Kanan"]
[WhiteFideId "502081"]
[BlackFideId "13404148"]
[WhiteElo "2624"]
[BlackElo "2460"]
[Result "0-1"]
[Round "9"]
[TimeControl "180+1"]
[Date "2023.08.22"]
[WhiteClock "0:00:12"]
[BlackClock "0:00:06"]
[Board "65"]

1. e4 {[%clk 0:03:00]}  c6 {[%clk 0:02:58]} 2. d4 {[%clk 0:02:59]}  d5 {[%clk 0:02:59]} 3. e5 {[%clk 0:02:59]}  a6 {[%clk 0:02:59]} 4. c4 {[%clk 0:02:52]}  Bf5 {[%clk 0:02:59]} 5. Nc3 {[%clk 0:02:51]}  e6 {[%clk 0:03:00]} 6. g4 {[%clk 0:02:48]}  Bg6 {[%clk 0:02:59]} 7. h4 {[%clk 0:02:46]}  h5 {[%clk 0:02:59]} 8. g5 {[%clk 0:02:25]}  Nd7 {[%clk 0:02:56]} 9. Bd3 {[%clk 0:02:17]}  Bxd3 {[%clk 0:02:51]} 10. Qxd3 {[%clk 0:02:17]}  Ne7 {[%clk 0:02:52]} 11. cxd5 {[%clk 0:02:09]}  cxd5 {[%clk 0:02:51]} 12. Nge2 {[%clk 0:02:08]}  g6 {[%clk 0:02:52]} 13. Ng3 {[%clk 0:02:08]}  Nc6 {[%clk 0:02:42]} 14. a3 {[%clk 0:02:00]}  Qb6 {[%clk 0:02:25]} 15. Nce2 {[%clk 0:01:44]}  Be7 {[%clk 0:02:12]} 16. O-O {[%clk 0:01:30]}  Na5 {[%clk 0:01:59]} 17. b4 {[%clk 0:01:28]}  Nc4 {[%clk 0:01:57]} 18. Nf4 {[%clk 0:01:26]}  O-O-O {[%clk 0:01:52]} 19. Be3 {[%clk 0:01:20]}  Kb8 {[%clk 0:01:44]} 20. Rfb1 {[%clk 0:01:18]}  Rc8 {[%clk 0:01:40]} 21. Nge2 {[%clk 0:01:05]}  Qc7 {[%clk 0:01:14]} 22. a4 {[%clk 0:01:03]}  b6 {[%clk 0:01:03]} 23. Kg2 {[%clk 0:00:53]}  Qb7 {[%clk 0:01:01]} 24. Kh2 {[%clk 0:00:49]}  Ka8 {[%clk 0:01:01]} 25. Ng3 {[%clk 0:00:48]}  Ndxe5 {[%clk 0:00:47]} 26. dxe5 {[%clk 0:00:48]}  Nxe5 {[%clk 0:00:47]} 27. Qe2 {[%clk 0:00:38]}  d4 {[%clk 0:00:43]} 28. Bd2 {[%clk 0:00:35]}  Nf3+ {[%clk 0:00:35]} 29. Kh3 {[%clk 0:00:35]}  Rc2 {[%clk 0:00:34]} 30. Ne4 {[%clk 0:00:30]}  Nxd2 {[%clk 0:00:21]} 31. Nxd2 {[%clk 0:00:29]}  Rxd2 {[%clk 0:00:12]} 32. Qxd2 {[%clk 0:00:28]}  Qf3+ {[%clk 0:00:13]} 33. Kh2 {[%clk 0:00:28]}  Bd6 {[%clk 0:00:12]} 34. Kg1 {[%clk 0:00:20]}  Bxf4 {[%clk 0:00:12]} 35. Qd1 {[%clk 0:00:20]}  Qh3 {[%clk 0:00:11]} 36. Ra2 {[%clk 0:00:17]}  Bh2+ {[%clk 0:00:10]} 37. Kh1 {[%clk 0:00:18]}  Bf4+ {[%clk 0:00:05]} 38. Kg1 {[%clk 0:00:18]}  d3 {[%clk 0:00:04]} 39. f3 {[%clk 0:00:13]}  d2 {[%clk 0:00:03]} 40. Rxd2 {[%clk 0:00:13]}  Be3+ {[%clk 0:00:03]} 41. Rf2 {[%clk 0:00:11]}  Qg3+ {[%clk 0:00:04]} 42. Kh1 {[%clk 0:00:12]}  Bxf2 {[%clk 0:00:02]} 43. Qf1 {[%clk 0:00:11]}  Qxh4+ {[%clk 0:00:03]} 44. Kg2 {[%clk 0:00:11]}  Qg3+ {[%clk 0:00:03]} 45. Kh1 {[%clk 0:00:12]}  Qxf3+ {[%clk 0:00:04]} 46. Qg2 {[%clk 0:00:12]}  Qxg2+ {[%clk 0:00:04]} 47. Kxg2 {[%clk 0:00:13]}  Be3 {[%clk 0:00:04]} 48. Rf1 {[%clk 0:00:14]}  Bxg5 {[%clk 0:00:05]} 49. Rxf7 {[%clk 0:00:13]}  h4 {[%clk 0:00:05]} 50. Rg7 {[%clk 0:00:13]}  h3+ {[%clk 0:00:06]} 51. Kh1 {[%clk 0:00:14]}  Rh6 {[%clk 0:00:06]} 52. Rxg6 {[%clk 0:00:12]}  Rxg6 {[%clk 0:00:06]} 0-1


[Site "https://www.chess.com"]